fUSD/lending_fUSD_20240301
["ID","MTS","AMOUNT","RATE_DAILY","PERIOD"]
[315943933,1709297438874,-159.36,0.00021918,2]
[315943934,1709297438884,-152.01,0.00021918,2]
[315943935,1709297438894,-400.0,0.00022,3]
[315943936,1709297438903,-70245.20894525,0.00022,2]
[315943937,1709297438917,-1718.68593017,0.00022,2]
[315943938,1709297438927,-300.749484,0.00022,3]
[315943939,1709297438937,-500.0,0.00022,2]
[315943940,1709297438946,-1000.0,0.00022,2]
[315943941,1709297438957,-158.15,0.00022033,2]
[315943942,1709297438966,-251.82440534,0.00022049,2]
[315943943,1709297438975,-155.30887482,0.00022095,2]
[315943944,1709297438985,-500.0,0.00022097,2]
[315943945,1709297438995,-500.0,0.00022097,2]
[315943946,1709297439004,-500.0,0.00022097,2]
[315943947,1709297439013,-500.0,0.00022097,2]
[315943948,1709297439022,-500.0,0.00022097,2]
[315943949,1709297439031,-500.0,0.00022097,2]
[315943950,1709297439040,-500.0,0.00022097,2]
[315943951,1709297439050,-500.0,0.00022097,2]
[315943952,1709297439059,-500.0,0.00022097,2]
[315943953,1709297439068,-500.0,0.00022097,2]
[315943954,1709297439078,-500.0,0.00022097,2]
[315943955,1709297439087,-500.0,0.00022097,2]
[315943956,1709297439096,-500.0,0.00022097,2]
[315943957,1709297439106,-537.70548668,0.00022097,2]
[315943958,1709297439115,-500.0,0.00022097,2]
[315943959,1709297439125,-500.0,0.00022097,2]
[315943960,1709297439134,-500.0,0.00022097,2]
[315943961,1709297439143,-500.0,0.00022097,2]
[315943962,1709297439152,-373.32012053,0.00022097,2]
[315943963,1709297439161,-500.0,0.00022097,2]
[315943964,1709297439170,-500.0,0.00022097,2]
[315943965,1709297439179,-500.0,0.00022097,2]
[315943966,1709297439188,-500.0,0.00022097,2]
[315943967,1709297439197,-500.0,0.00022097,2]
[315943968,1709297439207,-332.99662742,0.00022097,2]
[315943969,1709297439216,-502.09830695,0.00022097,2]
[315943970,1709297439226,-543.17,0.00022097,2]
[315943971,1709297439236,-500.0,0.00022097,2]
[315943972,1709297439245,-500.0,0.00022097,2]
[315943973,1709297439254,-500.0,0.00022097,2]
[315943974,1709297439263,-500.0,0.00022097,2]
[315943975,1709297439272,-500.0,0.00022097,2]
[315943976,1709297439291,-500.0,0.00022097,2]
[315943977,1709297439302,-500.0,0.00022097,2]
[315943978,1709297439314,-500.0,0.00022097,2]
[315943979,1709297439324,-500.0,0.00022097,2]
[315943980,1709297439333,-500.0,0.00022097,2]
[315943981,1709297439346,-637.19805511,0.00022097,2]
[315943982,1709297439356,-629.71669468,0.00022097,2]
[315943983,1709297439365,-500.0,0.00022097,2]
[315943984,1709297439374,-500.0,0.00022097,2]
[315943985,1709297439384,-500.0,0.00022097,2]
[315943986,1709297439394,-500.0,0.00022097,2]
[315943987,1709297439403,-500.0,0.00022097,2]
[315943988,1709297439415,-500.0,0.00022097,2]
[315943989,1709297439424,-500.0,0.00022097,2]
[315943990,1709297439434,-500.0,0.00022097,2]
[315943991,1709297439443,-500.0,0.00022097,2]
[315943992,1709297439452,-500.0,0.00022097,2]
[315943993,1709297439462,-500.0,0.00022097,2]
[315943994,1709297439471,-500.0,0.00022097,2]
[315943995,1709297439481,-500.0,0.00022097,2]
[315943996,1709297439491,-500.0,0.00022097,2]
[315943998,1709297439502,-500.0,0.00022097,2]
[315944000,1709297439512,-500.0,0.00022097,2]
[315944001,1709297439522,-500.0,0.00022097,2]
[315944003,1709297439532,-500.0,0.00022097,2]
[315944005,1709297439541,-500.0,0.00022097,2]
[315944007,1709297439551,-500.0,0.00022097,2]
[315944009,1709297439561,-500.0,0.00022097,2]
[315944011,1709297439570,-500.0,0.00022097,2]
[315944014,1709297439580,-500.0,0.00022097,2]
[315944016,1709297439590,-500.0,0.00022097,2]
[315944018,1709297439599,-500.0,0.00022097,2]
[315944020,1709297439609,-809.34,0.00022097,2]
[315944022,1709297439619,-629.42438113,0.00022097,2]
[315944024,1709297439628,-500.0,0.00022097,2]
[315944026,1709297439639,-500.0,0.00022097,2]
[315944028,1709297439649,-500.0,0.00022097,2]
[315944030,1709297439658,-500.0,0.00022097,2]
[315944032,1709297439668,-500.0,0.00022097,2]
[315944034,1709297439678,-500.0,0.00022097,2]
[315944036,1709297439687,-500.0,0.00022097,2]
[315944038,1709297439697,-500.0,0.00022097,2]
[315944040,1709297439707,-500.0,0.00022097,2]
[315944042,1709297439717,-500.0,0.00022097,2]
[315944044,1709297439727,-518.21,0.00022097,2]
[315944046,1709297439739,-500.0,0.00022097,2]
[315944048,1709297439750,-500.0,0.00022097,2]
[315944050,1709297439760,-701.2,0.00022097,2]
[315944052,1709297439769,-500.0,0.00022097,2]
[315944053,1709297439779,-500.0,0.00022097,2]
[315944054,1709297439790,-500.0,0.00022097,2]
[315944056,1709297439801,-732.94,0.00022097,2]
[315944057,1709297439812,-500.0,0.00022097,2]
[315944058,1709297439823,-500.0,0.00022097,2]
[315944059,1709297439834,-500.0,0.00022097,2]
[315944060,1709297439845,-500.0,0.00022097,2]
[315944061,1709297439856,-500.0,0.00022097,2]
[315944062,1709297439869,-500.0,0.00022097,2]
[315944063,1709297439879,-500.0,0.00022097,2]
[315944065,1709297439889,-500.0,0.00022097,2]
[315944066,1709297439899,-500.0,0.00022097,2]
[315944068,1709297439908,-514.79,0.00022097,2]
[315944070,1709297439918,-500.0,0.00022097,2]
[315944073,1709297439927,-500.0,0.00022097,2]
[315944075,1709297439937,-500.0,0.00022097,2]
[315944077,1709297439947,-220.03588188,0.00022097,2]
[315944079,1709297439958,-500.0,0.00022097,2]
[315944081,1709297439967,-578.23,0.00022097,2]
[315944083,1709297439977,-500.0,0.00022097,2]
[315944085,1709297439988,-500.0,0.00022097,2]
[315944087,1709297440002,-500.0,0.00022097,2]
[315944089,1709297440012,-230.76297133,0.00022097,2]
[315944097,1709297440074,-269.23702867,0.00022097,2]
[315944099,1709297440084,-500.0,0.00022097,2]
[315944101,1709297440093,-500.0,0.00022097,2]
[315944103,1709297440103,-500.0,0.00022097,2]
[315944105,1709297440113,-500.0,0.00022097,2]
[315944107,1709297440122,-500.0,0.00022097,2]
[315944109,1709297440131,-500.0,0.00022097,2]
[315944111,1709297440141,-500.0,0.00022097,2]
[315944113,1709297440150,-500.0,0.00022097,2]
[315944115,1709297440160,-500.0,0.00022097,2]
[315944118,1709297440170,-500.0,0.00022097,2]
[315944120,1709297440179,-500.0,0.00022097,2]
[315944122,1709297440189,-500.0,0.00022097,2]
[315944124,1709297440198,-525.02,0.00022097,2]
[315944126,1709297440207,-500.0,0.00022097,2]
[315944128,1709297440217,-500.0,0.00022097,2]
[315944130,1709297440227,-500.0,0.00022097,2]
[315944132,1709297440236,-500.0,0.00022097,2]
[315944134,1709297440246,-500.0,0.00022097,2]
[315944136,1709297440255,-500.0,0.00022097,2]
[315944137,1709297440265,-618.88,0.00022097,2]
[315944140,1709297440275,-587.96,0.00022097,2]
[315944142,1709297440285,-500.0,0.00022097,2]
[315944143,1709297440295,-500.0,0.00022097,2]
[315944146,1709297440305,-500.0,0.00022097,2]
[315944148,1709297440314,-500.0,0.00022097,2]
[315944150,1709297440325,-500.0,0.00022097,2]
[315944152,1709297440335,-500.0,0.00022097,2]
[315944154,1709297440344,-500.0,0.00022097,2]
[315944156,1709297440354,-500.0,0.00022097,2]
[315944158,1709297440363,-500.0,0.00022097,2]
[315944160,1709297440373,-500.0,0.00022097,2]
[315944162,1709297440383,-500.0,0.00022097,2]
[315944164,1709297440393,-1134.52,0.00022097,2]
[315944166,1709297440403,-500.0,0.00022097,2]
[315944168,1709297440412,-1603.24,0.00022097,2]
[315944171,1709297440422,-500.0,0.00022097,2]
[315944173,1709297440431,-506.9,0.00022097,2]
[315944175,1709297440441,-1032.95,0.00022097,2]
[315944177,1709297440450,-500.0,0.00022097,2]
[315944179,1709297440460,-500.0,0.00022097,2]
[315944181,1709297440469,-500.0,0.00022097,2]
[315944183,1709297440479,-500.0,0.00022097,2]
[315944186,1709297440492,-500.0,0.00022097,2]
[315944188,1709297440502,-500.0,0.00022097,2]
[315944189,1709297440512,-500.0,0.00022097,2]
[315944191,1709297440521,-1095.22,0.00022097,2]
[315944194,1709297440531,-500.0,0.00022097,2]
[315944196,1709297440544,-500.0,0.00022097,2]
[315944198,1709297440553,-500.0,0.00022097,2]
[315944200,1709297440563,-500.0,0.00022097,2]
[315944202,1709297440573,-500.0,0.00022097,2]
[315944204,1709297440582,-641.06,0.00022097,2]
[315944206,1709297440592,-500.0,0.00022097,2]
[315944208,1709297440602,-500.0,0.00022097,2]
[315944210,1709297440612,-500.0,0.00022097,2]
[315944213,1709297440622,-500.0,0.00022097,2]
[315944215,1709297440631,-509.98192901,0.00022097,2]
[315944217,1709297440640,-500.0,0.00022097,2]
[315944219,1709297440650,-500.0,0.00022097,2]
[315944221,1709297440660,-500.0,0.00022097,2]
[315944223,1709297440669,-500.0,0.00022097,2]
[315944225,1709297440679,-500.0,0.00022097,2]
[315944227,1709297440688,-500.0,0.00022097,2]
[315944229,1709297440699,-500.0,0.00022097,2]
[315944231,1709297440708,-500.0,0.00022097,2]
[315944233,1709297440718,-500.0,0.00022097,2]
[315944235,1709297440728,-500.0,0.00022097,2]
[315944237,1709297440739,-500.0,0.00022097,2]
[315944239,1709297440749,-772.21,0.00022097,2]
[315944241,1709297440758,-500.0,0.00022097,2]
[315944243,1709297440768,-500.0,0.00022097,2]
[315944245,1709297440778,-447.51331986,0.00022097,2]
[315944247,1709297440788,-624.86196893,0.00022097,2]
[315944249,1709297440798,-729.96,0.00022097,2]
[315944252,1709297440810,-500.0,0.00022097,2]
[315944253,1709297440820,-271.1666653,0.00022097,2]
[315944255,1709297440831,-500.0,0.00022097,2]
[315944257,1709297440840,-500.0,0.00022097,2]
[315944259,1709297440849,-708.17,0.00022097,2]
[315944261,1709297440859,-500.0,0.00022097,2]
[315944262,1709297440870,-500.0,0.00022097,2]
[315944263,1709297440880,-500.0,0.00022097,2]
[315944264,1709297440889,-500.0,0.00022097,2]
[315944265,1709297440899,-186.63849863,0.00022097,2]
[315944266,1709297440909,-516.5,0.00022097,2]
[315944267,1709297440919,-500.0,0.00022097,2]
[315944268,1709297440929,-500.0,0.00022097,2]
[315944269,1709297440938,-156.06,0.000221,2]
[315944270,1709297440948,-159.36,0.00022117,2]
[315944271,1709297440958,-1490.62341771,0.00022121,2]
[315944272,1709297440968,-500.0,0.00022123,2]
[315944273,1709297440977,-500.0,0.00022123,2]
[315944274,1709297440987,-500.0,0.00022123,2]
[315944275,1709297440996,-500.0,0.00022123,2]
[315944276,1709297441006,-500.0,0.00022123,2]
[315944277,1709297441015,-500.0,0.00022123,2]
[315944278,1709297441024,-500.0,0.00022123,2]
[315944279,1709297441034,-500.0,0.00022123,2]
[315944280,1709297441044,-500.0,0.00022123,2]
[315944281,1709297441053,-500.0,0.00022123,2]
[315944282,1709297441062,-500.0,0.00022123,2]
[315944283,1709297441072,-500.0,0.00022123,2]
[315944285,1709297441081,-500.0,0.00022123,2]
[315944287,1709297441091,-500.0,0.00022123,2]
[315944289,1709297441100,-551.14,0.00022123,2]
[315944291,1709297441109,-500.0,0.00022123,2]
[315944293,1709297441118,-500.0,0.00022123,2]
[315944295,1709297441128,-500.0,0.00022123,2]
[315944297,1709297441137,-500.0,0.00022123,2]
[315944299,1709297441147,-492.83259551,0.00022123,2]
[315944301,1709297441156,-209.27020577,0.00022123,2]
[315944303,1709297441165,-500.0,0.00022123,2]
[315944305,1709297441175,-500.0,0.00022123,2]
[315944307,1709297441185,-422.67456478,0.00022123,2]
[315944309,1709297441197,-500.0,0.00022123,2]
[315944311,1709297441206,-500.0,0.00022123,2]
[315944313,1709297441216,-500.0,0.00022123,2]
[315944315,1709297441225,-500.0,0.00022123,2]
[315944317,1709297441236,-500.0,0.00022123,2]
[315944349,1709297441533,-500.0,0.00022123,2]
[315944350,1709297441557,-500.0,0.00022123,2]
[315944351,1709297441568,-500.0,0.00022123,2]
[315944352,1709297441578,-500.0,0.00022123,2]
[315944353,1709297441589,-500.0,0.00022123,2]
[315944354,1709297441599,-500.0,0.00022123,2]
[315944355,1709297441610,-592.99,0.00022123,2]
[315944356,1709297441620,-500.0,0.00022123,2]
[315944357,1709297441630,-500.0,0.00022123,2]
[315944358,1709297441640,-448.15019128,0.00022123,2]
[315944359,1709297441650,-500.0,0.00022123,2]
[315944360,1709297441660,-598.53737784,0.00022123,2]
[315944361,1709297441669,-500.0,0.00022123,2]
[315944362,1709297441679,-500.0,0.00022123,2]
[315944363,1709297441690,-150.0,0.00022123,2]
[315944364,1709297441700,-500.0,0.00022123,2]
[315944365,1709297441710,-739.39,0.00022123,2]
[315944366,1709297441720,-519.67,0.00022123,2]
[315944367,1709297441730,-500.0,0.00022123,2]
[315944368,1709297441741,-500.0,0.00022123,2]
[315944369,1709297441751,-500.0,0.00022123,2]
[315944370,1709297441761,-500.0,0.00022123,2]
[315944371,1709297441771,-643.1,0.00022123,2]
[315944372,1709297441782,-500.0,0.00022123,2]
[315944373,1709297441792,-522.7,0.00022123,2]
[315944374,1709297441802,-500.0,0.00022123,2]
[315944375,1709297441812,-500.0,0.00022123,2]
[315944376,1709297441821,-500.0,0.00022123,2]
[315944377,1709297441830,-500.0,0.00022123,2]
[315944378,1709297441840,-500.0,0.00022123,2]
[315944379,1709297441850,-618.72,0.00022123,2]
[315944380,1709297441860,-500.0,0.00022123,2]
[315944381,1709297441870,-500.0,0.00022123,2]
[315944382,1709297441881,-500.0,0.00022123,2]
[315944383,1709297441890,-500.0,0.00022123,2]
[315944384,1709297441900,-500.0,0.00022123,2]
[315944385,1709297441910,-561.07,0.00022123,2]
[315944386,1709297441920,-349.66340921,0.00022123,2]
[315944387,1709297441930,-513.8,0.00022123,2]
[315944388,1709297441940,-500.0,0.00022123,2]
[315944389,1709297441950,-500.0,0.00022123,2]
[315944390,1709297441960,-620.55,0.00022123,2]
[315944391,1709297441970,-500.0,0.00022123,2]
[315944392,1709297441979,-500.0,0.00022123,2]
[315944393,1709297441991,-500.0,0.00022123,2]
[315944394,1709297442000,-634.34,0.00022123,2]
[315944395,1709297442010,-500.0,0.00022123,2]
[315944396,1709297442020,-500.0,0.00022123,2]
[315944397,1709297442029,-500.0,0.00022123,2]
[315944398,1709297442039,-500.0,0.00022123,2]
[315944399,1709297442050,-500.0,0.00022123,2]
[315944400,1709297442060,-500.0,0.00022123,2]
[315944401,1709297442073,-500.0,0.00022123,2]
[315944402,1709297442083,-500.0,0.00022123,2]
[315944403,1709297442093,-500.0,0.00022123,2]
[315944404,1709297442102,-500.0,0.00022123,2]
[315944405,1709297442112,-500.0,0.00022123,2]
[315944406,1709297442121,-548.21,0.00022123,2]
[315944407,1709297442131,-500.0,0.00022123,2]
[315944408,1709297442140,-500.0,0.00022123,2]
[315944409,1709297442150,-500.0,0.00022123,2]
[315944410,1709297442159,-500.0,0.00022123,2]
[315944411,1709297442169,-500.0,0.00022123,2]
[315944412,1709297442178,-500.0,0.00022123,2]
[315944413,1709297442188,-500.0,0.00022123,2]
[315944414,1709297442197,-675.98,0.00022123,2]
[315944415,1709297442206,-806.78,0.00022123,2]
[315944416,1709297442216,-500.0,0.00022123,2]
[315944417,1709297442226,-500.0,0.00022123,2]
[315944418,1709297442236,-500.0,0.00022123,2]
[315944419,1709297442247,-3110.48,0.00022123,2]
[315944420,1709297442256,-500.0,0.00022123,2]
[315944421,1709297442266,-526.4,0.00022123,2]
[315944422,1709297442277,-616.04,0.00022123,2]
[315944423,1709297442286,-559.19008466,0.00022123,2]
[315944424,1709297442296,-618.65,0.00022123,2]
[315944425,1709297442305,-500.0,0.00022123,2]
[315944426,1709297442315,-500.0,0.00022123,2]
[315944427,1709297442325,-500.0,0.00022123,2]
[315944428,1709297442334,-500.0,0.00022123,2]
[315944429,1709297442343,-617.94,0.00022123,2]
[315944430,1709297442352,-1084.14,0.00022123,2]
[315944431,1709297442362,-500.0,0.00022123,2]
[315944432,1709297442371,-559.67,0.00022123,2]
[315944433,1709297442381,-1118.05,0.00022123,2]
[315944434,1709297442390,-500.0,0.00022123,2]
[315944435,1709297442400,-528.89994782,0.00022123,2]
[315944436,1709297442409,-874.18,0.00022123,2]
[315944437,1709297442419,-500.0,0.00022123,2]
[315944438,1709297442428,-612.87,0.00022123,2]
[315944439,1709297442438,-647.67521571,0.00022123,2]
[315944440,1709297442447,-1023.46,0.00022123,2]
[315944441,1709297442457,-500.0,0.00022123,2]
[315944442,1709297442466,-1273.55,0.00022123,2]
[315944443,1709297442476,-500.0,0.00022123,2]
[315944444,1709297442486,-763.66,0.00022123,2]
[315944445,1709297442497,-734.45,0.00022123,2]
[315944446,1709297442506,-500.0,0.00022123,2]
[315944447,1709297442516,-500.0,0.00022123,2]
[315944448,1709297442526,-500.0,0.00022123,2]
[315944449,1709297442535,-1482.46,0.00022123,2]
[315944450,1709297442545,-500.0,0.00022123,2]
[315944451,1709297442554,-774.84,0.00022123,2]
[315944452,1709297442564,-500.0,0.00022123,2]
[315944453,1709297442574,-191.78689993,0.00022123,2]
[315944454,1709297442592,-308.21310007,0.00022123,2]
[315944455,1709297442605,-469.67,0.00022123,2]
[315944456,1709297442615,-182.75246883,0.00022123,2]
[315944457,1709297442627,-812.68753117,0.00022123,2]
[315944458,1709297442636,-500.0,0.00022123,2]
[315944459,1709297442646,-500.0,0.00022123,2]
[315944460,1709297442656,-500.0,0.00022123,2]
[315944461,1709297442666,-600.92,0.00022123,2]
[315944462,1709297442676,-500.0,0.00022123,2]
[315944463,1709297442686,-500.0,0.00022123,2]
[315944464,1709297442695,-670.16,0.00022123,2]
[315944465,1709297442705,-615.88,0.00022123,2]
[315944466,1709297442715,-500.0,0.00022123,2]
[315944467,1709297442725,-117.55552163,0.00022123,2]
[315944468,1709297442738,-382.44447837,0.00022123,2]
[315944469,1709297442748,-121.57859853,0.00022123,2]
[315944474,1709297443087,-783.45476951,0.00022123,2]
[315944475,1709297443100,-638.24848553,0.00022123,2]
[315944518,1709297443878,-500.0,0.00021917,2]
[315944520,1709297443887,-500.0,0.00021917,2]
[315944522,1709297443897,-283.21814643,0.00022123,2]
[315944524,1709297443906,-582.18,0.00022123,2]
[315944526,1709297443915,-500.0,0.00022123,2]
[315944528,1709297443924,-500.0,0.00022123,2]
[315944530,1709297443933,-500.0,0.00022123,2]
[315944532,1709297443943,-500.0,0.00022123,2]
[315944534,1709297443952,-500.0,0.00022123,2]
[315944536,1709297443961,-500.0,0.00022123,2]
[315944538,1709297443971,-3699.94,0.00022123,2]
[315944540,1709297443980,-500.0,0.00022123,2]
[315944542,1709297443990,-1000.8,0.00022123,2]
[315944544,1709297443999,-298.49794184,0.00022123,2]
[315944546,1709297444008,-500.0,0.00022123,2]
[315944548,1709297444018,-500.0,0.00022123,2]
[315944550,1709297444027,-680.08,0.00022123,2]
[315944552,1709297444037,-500.0,0.00022123,2]
[315944554,1709297444046,-500.0,0.00022123,2]
[315944556,1709297444056,-7405.05,0.00022123,2]
[315944558,1709297444065,-500.0,0.00022123,2]
[315944560,1709297444074,-4676.53,0.00022123,2]
[315944562,1709297444083,-500.0,0.00022123,2]
[315944564,1709297444093,-500.0,0.00022123,2]
[315944566,1709297444102,-500.0,0.00022123,2]
[315944568,1709297444111,-500.0,0.00022123,2]
[315944570,1709297444120,-500.0,0.00022123,2]
[315944572,1709297444130,-500.0,0.00022123,2]
[315944574,1709297444139,-743.78,0.00022123,2]
[315944576,1709297444148,-500.0,0.00022123,2]
[315944578,1709297444158,-500.0,0.00022123,2]
[315944580,1709297444167,-500.0,0.00022123,2]
[315944582,1709297444177,-20308.5021,0.00022124,2]
[315944584,1709297444186,-500.0,0.00022144,2]
[315944586,1709297444195,-1458.03,0.00022144,2]
[315944588,1709297444204,-500.0,0.00022144,2]
[315944589,1709297444213,-9712.36,0.00022144,2]
[315944590,1709297444222,-500.0,0.00022146,2]
[315944591,1709297444231,-468.50294989,0.00022146,2]
[315944592,1709297444242,-501.55913552,0.00022146,2]
[315944593,1709297444251,-500.0,0.00022146,2]
[315944594,1709297444261,-158.15,0.00022149,2]
[315944595,1709297444271,-2156.16179763,0.00022149,2]
[315944596,1709297444280,-359.4073182,0.0002215,2]
[315944597,1709297444289,-62264.24281063,0.00022151,2]
[315944599,1709297444299,-6555.58840784,0.00022151,2]
[315944601,1709297444308,-1322.5814219,0.00022151,2]
[315944603,1709297444318,-500.0,0.00022191,2]
[315944605,1709297444328,-500.0,0.00022191,2]
[315944607,1709297444337,-500.0,0.00022191,2]
[315944609,1709297444347,-500.0,0.00022191,2]
[315944611,1709297444356,-500.0,0.00022191,2]
[315944613,1709297444366,-500.0,0.00022191,2]
[315944615,1709297444375,-500.0,0.00022191,2]
[315944617,1709297444384,-500.0,0.00022191,2]
[315944620,1709297444393,-500.0,0.00022191,2]
[315944622,1709297444402,-500.0,0.00022191,2]
[315944624,1709297444411,-500.0,0.00022191,2]
[315944626,1709297444421,-500.0,0.00022191,2]
[315944628,1709297444430,-507.75740937,0.00022191,2]
[315944630,1709297444439,-500.0,0.00022191,2]
[315944632,1709297444448,-500.0,0.00022191,2]
[315944634,1709297444458,-500.0,0.00022191,2]
[315944636,1709297444468,-500.0,0.00022191,2]
[315944638,1709297444477,-500.0,0.00022191,2]
[315944640,1709297444487,-500.0,0.00022191,2]
[315944642,1709297444500,-500.0,0.00022191,2]
[315944644,1709297444510,-500.0,0.00022191,2]
[315944646,1709297444519,-500.0,0.00022191,2]
[315944648,1709297444529,-500.0,0.00022191,2]
[315944650,1709297444539,-500.0,0.00022191,2]
[315944652,1709297444549,-500.0,0.00022191,2]
[315944654,1709297444559,-436.3,0.00022191,2]
[315944656,1709297444569,-500.0,0.00022191,2]
[315944658,1709297444579,-543.72,0.00022191,2]
[315944660,1709297444588,-500.0,0.00022191,2]
[315944662,1709297444599,-500.0,0.00022191,2]
[315944664,1709297444608,-500.0,0.00022191,2]
[315944666,1709297444618,-500.0,0.00022191,2]
[315944668,1709297444627,-500.0,0.00022191,2]
[315944670,1709297444636,-500.0,0.00022191,2]
[315944672,1709297444645,-641.83,0.00022191,2]
[315944674,1709297444655,-500.0,0.00022191,2]
[315944676,1709297444664,-585.22,0.00022191,2]
[315944678,1709297444673,-500.0,0.00022191,2]
[315944680,1709297444682,-500.0,0.00022191,2]
[315944681,1709297444691,-500.0,0.00022191,2]
[315944682,1709297444701,-500.0,0.00022191,2]
[315944683,1709297444710,-1298.84,0.00022191,2]
[315944684,1709297444719,-500.0,0.00022191,2]
[315944685,1709297444729,-500.0,0.00022191,2]
[315944686,1709297444738,-500.0,0.00022191,2]
[315944687,1709297444749,-500.0,0.00022191,2]
[315944688,1709297444758,-1240.04,0.00022191,2]
[315944689,1709297444768,-1005.28,0.00022191,2]
[315944690,1709297444779,-500.0,0.00022191,2]
[315944691,1709297444788,-9790.96,0.00022191,2]
[315944692,1709297444798,-592.99,0.00022191,2]
[315944693,1709297444808,-500.0,0.00022191,2]
[315944694,1709297444817,-500.0,0.00022191,2]
[315944695,1709297444827,-500.0,0.00022191,2]
[315944696,1709297444837,-527.68,0.00022191,2]
[315944697,1709297444846,-500.0,0.00022191,2]
[315944698,1709297444855,-500.0,0.00022191,2]
[315944699,1709297444867,-1695.11,0.00022191,2]
[315944700,1709297444877,-500.0,0.00022191,2]
[315944701,1709297444887,-500.0,0.00022191,2]
[315944702,1709297444897,-500.0,0.00022191,2]
[315944703,1709297444908,-500.0,0.00022191,2]
[315944704,1709297444918,-500.0,0.00022191,2]
[315944705,1709297444929,-556.2,0.00022191,2]
[315944706,1709297444939,-500.0,0.00022191,2]
[315944707,1709297444950,-761.85,0.00022191,2]
[315944708,1709297444960,-166.88963298,0.00022191,2]
[315944709,1709297444972,-500.0,0.00022191,2]
[315944710,1709297444983,-500.0,0.00022191,2]
[315944711,1709297444993,-526.7567398,0.00022191,2]
[315944712,1709297445004,-500.0,0.00022191,2]
[315944713,1709297445014,-500.0,0.00022191,2]
[315944714,1709297445024,-500.0,0.00022191,2]
[315944715,1709297445034,-1.91445695,0.00022191,2]
[315944716,1709297445049,-372.50946649,0.00022191,2]
[315944717,1709297445060,-125.57607656,0.00022191,2]
[315944718,1709297445069,-683.85,0.00022191,2]
[315944719,1709297445078,-500.0,0.00022191,2]
[315944720,1709297445088,-31.61061284,0.00022191,2]
[315944721,1709297445100,-468.38938716,0.00022191,2]
[315944722,1709297445109,-500.0,0.00022191,2]
[315944723,1709297445118,-500.0,0.00022191,2]
[315944724,1709297445127,-500.0,0.00022191,2]
[315944725,1709297445137,-581.20641296,0.00022191,2]
[315944726,1709297445146,-500.0,0.00022191,2]
[315944727,1709297445154,-500.0,0.00022191,2]
[315944728,1709297445163,-500.0,0.00022191,2]
[315944729,1709297445173,-500.0,0.00022191,2]
[315944730,1709297445183,-500.0,0.00022191,2]
[315944731,1709297445192,-500.0,0.00022191,2]
[315944732,1709297445201,-549.46,0.00022191,2]
[315944733,1709297445210,-500.0,0.00022191,2]
[315944734,1709297445220,-265.48319988,0.00022191,2]
[315944735,1709297445233,-234.51680012,0.00022191,2]
[315944736,1709297445243,-685.87,0.00022191,2]